bitfinex/quotes_BTCUSD_20250709
["timestamp","ask_amount","ask_price","bid_price","bid_amount"]
[1752040463890,0.93758358,108900.0,108890.0,0.22949893]
[1752040464411,0.32947438,108900.0,108890.0,0.22949893]
[1752040464625,0.93758358,108900.0,108890.0,0.22949893]
[1752040466747,0.93758358,108900.0,108890.0,0.22949991]
[1752040470903,0.93758358,108900.0,108890.0,0.22950209]
[1752040473399,0.32947438,108900.0,108890.0,0.22950209]
[1752040473598,0.93758358,108900.0,108890.0,0.22950209]
[1752040482670,0.32947438,108900.0,108890.0,0.22950209]
[1752040482868,0.93758358,108900.0,108890.0,0.22950209]
[1752040483822,0.93758358,108900.0,108890.0,0.2295021]
[1752040484451,0.58832898,108900.0,108890.0,0.2295021]
[1752040484656,0.63292898,108900.0,108890.0,0.2295021]
[1752040485755,0.10980138,108900.0,108890.0,0.78611186]
[1752040485975,0.08128915,108900.0,108890.0,0.79529535]
[1752040486185,0.08128915,108900.0,108890.0,0.80447859]
[1752040486409,0.0721065,108900.0,108890.0,0.81366166]
[1752040486876,0.08128898,108900.0,108890.0,0.81366166]
[1752040487116,0.07210642,108900.0,108890.0,0.81366174]
[1752040487327,0.08128898,108900.0,108890.0,0.81366174]
[1752040487542,0.07210642,108900.0,108890.0,0.82284422]
[1752040487760,0.14547916,108910.0,108900.0,0.26171976]
[1752040487974,0.14547916,108910.0,108900.0,0.9055132]
[1752040488191,0.19003916,108910.0,108900.0,0.9055132]
[1752040488613,0.19003916,108910.0,108900.0,0.94675458]
[1752040488815,0.05003916,108910.0,108900.0,0.94675458]
[1752040489849,0.05003916,108910.0,108900.0,0.94775458]
[1752040490261,0.05003916,108910.0,108900.0,0.9065132]
[1752040490659,0.05003916,108910.0,108900.0,0.9075132]
[1752040491181,0.04959871,108910.0,108900.0,0.9075132]
[1752040492290,0.04959871,108910.0,108900.0,0.6034586]
[1752040492583,0.00503871,108910.0,108900.0,0.6034586]
[1752040492791,0.04955871,108910.0,108900.0,0.6034586]
[1752040492992,0.04955871,108910.0,108900.0,0.6033791]
[1752040493399,0.00503871,108910.0,108900.0,0.9074337]
[1752040493607,0.04955871,108910.0,108900.0,0.9074337]
[1752040493815,0.04955871,108910.0,108900.0,0.2993245]
[1752040494018,0.05600396,108910.0,108900.0,0.90101097]
[1752040494222,0.05600396,108910.0,108900.0,0.86438545]
[1752040494430,0.05600396,108910.0,108900.0,0.86120606]
[1752040494838,0.05600396,108910.0,108900.0,0.85833347]
[1752040495046,0.05600396,108910.0,108900.0,0.50692176]
[1752040495261,0.06518509,108910.0,108900.0,0.58546612]
[1752040495466,0.05596396,108910.0,108900.0,0.58546612]
[1752040496087,0.04951871,108910.0,108900.0,0.5918844]
[1752040496726,0.04951871,108910.0,108900.0,0.2878298]
[1752040499164,0.00503871,108910.0,108900.0,0.59186253]
[1752040499359,0.04951871,108910.0,108900.0,0.59186253]
[1752040499800,0.00503871,108910.0,108900.0,0.89591713]
[1752040499952,0.00503871,108910.0,108900.0,1.63140866]
[1752040500153,1.02214575,108950.0,108930.0,0.25448417]
[1752040500365,0.32241231,108940.0,108930.0,0.2871879]
[1752040500580,0.08115626,108940.0,108930.0,0.2871879]
[1752040500781,0.38521086,108940.0,108930.0,0.2871879]
[1752040500983,0.3760315,108940.0,108930.0,0.29636777]
[1752040501188,0.36685256,108940.0,108930.0,0.27800795]
[1752040501379,0.3760315,108940.0,108930.0,0.28718798]
[1752040501581,0.38485913,108940.0,108930.0,0.28718798]
[1752040501790,0.08998389,108940.0,108930.0,0.28718798]
[1752040501992,0.39803849,108940.0,108930.0,0.27800795]
[1752040502232,0.37968053,108940.0,108930.0,0.28718798]
[1752040502421,0.39803849,108940.0,108930.0,0.29636793]
[1752040502624,0.39803849,108940.0,108930.0,0.28718798]
[1752040502833,0.39803849,108940.0,108930.0,0.27800795]
[1752040503035,0.39803849,108940.0,108930.0,0.28718798]
[1752040503439,0.39803849,108940.0,108930.0,0.27800795]
[1752040504212,0.27757118,108940.0,108930.0,0.27800795]
[1752040504382,0.58162578,108940.0,108930.0,0.28718798]
[1752040504564,0.57244701,108940.0,108930.0,0.26879531]
[1752040504759,0.57244701,108940.0,108930.0,0.20996753]
[1752040504956,0.57244701,108940.0,108930.0,0.20709531]
[1752040505142,0.33524036,108940.0,108930.0,0.21627534]
[1752040505343,0.38885964,108940.0,108930.0,0.21627543]
[1752040505553,0.38885964,108940.0,108930.0,0.22545546]
[1752040505755,0.38885964,108940.0,108930.0,0.21627543]
[1752040505965,0.38885964,108940.0,108930.0,0.21627498]
[1752040506203,0.38885964,108940.0,108930.0,0.22545501]
[1752040506403,0.08480504,108940.0,108930.0,0.21627498]
[1752040506554,0.38885964,108940.0,108930.0,0.21627498]
[1752040508014,0.38885964,108940.0,108930.0,0.22545501]
[1752040508445,0.38885964,108940.0,108930.0,0.21627498]
[1752040508653,0.57244693,108940.0,108930.0,0.21627506]
[1752040508856,0.26839233,108940.0,108930.0,0.22545028]
[1752040509063,0.57244693,108940.0,108930.0,0.22545028]
[1752040510652,0.57244693,108940.0,108930.0,0.21627016]
[1752040511278,0.57244693,108940.0,108930.0,0.22545028]
[1752040511483,0.57244693,108940.0,108930.0,0.21627016]
[1752040511645,0.26839233,108940.0,108930.0,0.21627557]
[1752040511858,0.56326799,108940.0,108930.0,0.20709537]
[1752040512058,0.56326799,108940.0,108930.0,0.21627557]
[1752040512640,0.3796007,108940.0,108930.0,0.22545569]
[1752040512833,0.56318799,108940.0,108930.0,0.20709537]
[1752040513053,0.25913339,108940.0,108930.0,0.20709537]
[1752040513209,0.56318799,108940.0,108930.0,0.20709537]
[1752040513828,0.25913339,108940.0,108930.0,0.21627557]
[1752040514034,0.56318799,108940.0,108930.0,0.22545569]
[1752040514680,0.56318799,108940.0,108930.0,0.21627557]
[1752040515095,0.56318799,108940.0,108930.0,0.20986887]
[1752040515302,0.56318799,108940.0,108930.0,0.21904899]
[1752040515925,0.56318799,108940.0,108930.0,0.20068867]
[1752040516757,0.5540088,108940.0,108930.0,0.20068867]
[1752040517520,0.5540088,108940.0,108930.0,0.01708453]
[1752040517704,0.54482952,108940.0,108930.0,0.01708453]
[1752040518262,0.24077492,108940.0,108930.0,0.01708453]
[1752040518461,0.54482952,108940.0,108930.0,0.20068867]
[1752040518822,0.54482952,108940.0,108930.0,0.20356082]
[1752040519627,0.24077492,108940.0,108930.0,0.20356082]
[1752040519844,0.54482952,108940.0,108930.0,0.20356082]
[1752040520070,0.25640144,108940.0,108930.0,0.21274094]
[1752040520277,0.56045639,108940.0,108930.0,0.21274094]
[1752040520890,0.56045639,108940.0,108930.0,0.52597557]
[1752040521097,0.04681196,108940.0,108930.0,0.29758062]
[1752040521341,0.04681196,108940.0,108930.0,0.61081483]
[1752040521342,0.09109187,108940.0,108930.0,0.61081483]
[1752040521549,0.01044768,108940.0,108930.0,0.61081483]
[1752040522192,0.004,108940.0,108930.0,0.91486943]
[1752040522406,0.002,108940.0,108930.0,1.25486943]
[1752040522639,0.04628,108940.0,108930.0,0.68488034]
[1752040522850,0.04628,108940.0,108930.0,0.98893494]
[1752040523082,0.04628,108940.0,108930.0,0.99180671]
[1752040523304,0.04628,108940.0,108930.0,0.68488034]
[1752040523519,0.04628,108940.0,108930.0,0.98893494]
[1752040523935,0.04628,108940.0,108930.0,1.04379275]
[1752040524765,0.04728,108940.0,108930.0,1.13522968]
[1752040525211,0.05372739,108940.0,108930.0,1.13522968]
[1752040526516,0.00944739,108940.0,108930.0,1.13522968]
[1752040526728,0.05072739,108940.0,108930.0,1.13522968]
[1752040527115,0.05172739,108940.0,108930.0,1.13522968]
[1752040527584,0.05072739,108940.0,108930.0,1.13522968]
[1752040527810,0.05072739,108940.0,108930.0,0.97057563]
[1752040528058,0.5659066,108940.0,108930.0,0.24455272]
[1752040528279,0.38231931,108940.0,108930.0,0.21274066]
[1752040528499,0.38231931,108940.0,108930.0,0.26391295]
[1752040528712,0.37313995,108940.0,108930.0,0.26391293]
[1752040528932,0.07826463,108940.0,108930.0,0.2730928]
[1752040529364,0.07826463,108940.0,108930.0,0.27309288]
[1752040529781,0.07826463,108940.0,108930.0,0.23210062]
[1752040530118,0.07826463,108940.0,108930.0,0.24128049]
[1752040530949,0.07826463,108940.0,108930.0,0.25046027]
[1752040530950,0.06908535,108940.0,108930.0,0.25046027]
[1752040531150,0.06908864,108940.0,108930.0,0.24132347]
[1752040531402,0.07826792,108940.0,108930.0,0.2321436]
[1752040531919,0.06908864,108940.0,108930.0,0.25050325]
[1752040532188,0.0690886,108940.0,108930.0,0.25050325]
[1752040532649,0.0690886,108940.0,108930.0,0.24132347]
[1752040532860,0.07826788,108940.0,108930.0,0.2321436]
[1752040533312,0.6344563,108940.0,108930.0,0.20460342]
[1752040533797,0.33073453,108940.0,108930.0,0.20460342]
[1752040534013,0.33073453,108940.0,108930.0,0.21378362]
[1752040535125,0.33073453,108940.0,108930.0,0.22296374]
[1752040535757,0.33073453,108940.0,108930.0,0.23214377]
[1752040535948,0.33073453,108940.0,108930.0,0.22296374]
[1752040536358,0.31510504,108940.0,108930.0,0.20460342]
[1752040536964,0.31510504,108940.0,108930.0,0.21378362]
[1752040537737,0.39736286,108940.0,108930.0,0.02099928]
[1752040537937,0.79252156,108940.0,108930.0,0.02099928]
[1752040538163,0.71562548,108940.0,108930.0,0.02099928]
[1752040539929,0.71562548,108940.0,108930.0,0.00387177]
[1752040540181,0.71562548,108940.0,108930.0,0.02100498]
[1752040542927,0.74321848,108940.0,108930.0,0.02100498]
[1752040543139,1.13837718,108940.0,108930.0,0.0210003]
[1752040543558,0.83465541,108940.0,108930.0,0.0210003]
[1752040544365,0.83465541,108940.0,108930.0,0.0200003]
[1752040544607,0.74321848,108940.0,108930.0,0.0200003]
[1752040544807,0.74966564,108940.0,108930.0,0.0200003]
[1752040544963,1.39338741,108940.0,108930.0,0.01712853]
[1752040545165,0.78594387,108940.0,108930.0,0.01712853]
[1752040545391,1.08966564,108940.0,108930.0,0.01712853]
[1752040545601,0.40666387,108940.0,108930.0,0.01712853]
[1752040545978,1.09754424,108940.0,108930.0,0.01712853]
[1752040546408,1.09454424,108940.0,108930.0,0.01712853]
[1752040546832,1.09954424,108940.0,108930.0,0.01712853]
[1752040547163,1.09454424,108940.0,108930.0,0.01712853]
[1752040547573,1.09754424,108940.0,108930.0,0.01712853]
[1752040548397,1.05338424,108940.0,108930.0,0.01712853]
[1752040548602,1.09750424,108940.0,108930.0,0.01712853]
[1752040549220,1.11181315,108940.0,108930.0,0.01712853]
[1752040551322,0.80809138,108940.0,108930.0,0.01712853]
[1752040551549,0.54732502,108930.0,108920.0,0.002]
[1752040551782,0.94248372,108930.0,108920.0,0.02197922]
[1752040552500,0.97358372,108930.0,108920.0,0.02197922]
[1752040552720,0.97858372,108930.0,108920.0,0.02197922]
[1752040554522,0.97858372,108930.0,108920.0,0.02197822]
[1752040555738,0.94748372,108930.0,108920.0,0.02197822]
[1752040557442,0.94748372,108930.0,108920.0,0.0219782]
[1752040557898,0.63840105,108930.0,108920.0,0.2055992]
[1752040558116,0.71007305,108930.0,108920.0,0.2371992]
[1752040558319,0.71007305,108930.0,108920.0,0.24638025]
[1752040559358,0.71007305,108930.0,108920.0,0.25556121]
[1752040559567,0.71007305,108930.0,108920.0,0.2371992]
[1752040559981,0.71007305,108930.0,108920.0,0.24638025]
[1752040560592,0.71007305,108930.0,108920.0,0.2371992]
[1752040562799,0.71007305,108930.0,108920.0,0.24638025]
[1752040563007,0.71007305,108930.0,108920.0,0.2371992]
[1752040563212,0.71007305,108930.0,108920.0,0.24638025]
[1752040563576,0.71007305,108930.0,108920.0,0.25556121]
[1752040563751,0.71007305,108930.0,108920.0,0.24638025]
[1752040564102,0.71007305,108930.0,108920.0,0.25556121]
[1752040564651,0.71007305,108930.0,108920.0,0.24638025]
[1752040565733,0.71007305,108930.0,108920.0,0.2371992]
[1752040565954,0.66599305,108930.0,108920.0,0.2371992]
[1752040566177,0.7008531,108930.0,108920.0,0.0219782]
[1752040566399,0.7008531,108930.0,108920.0,0.2055992]
[1752040566618,0.70730689,108930.0,108920.0,0.2055992]
[1752040567267,1.01102866,108930.0,108920.0,0.2055992]
[1752040567491,0.70730689,108930.0,108920.0,0.2055992]
[1752040567712,0.70730689,108930.0,108920.0,0.27498025]
[1752040567903,0.70731026,108930.0,108920.0,0.27502134]
[1752040568099,0.70731026,108930.0,108920.0,0.26584029]
[1752040569089,0.70731026,108930.0,108920.0,0.27502134]
[1752040569652,0.70731026,108930.0,108920.0,0.26584029]
[1752040570104,0.4888459,108930.0,108920.0,0.26584029]
[1752040570282,0.72563024,108930.0,108920.0,0.27502134]
[1752040570491,0.72563024,108930.0,108920.0,0.29338309]
[1752040570753,0.5328459,108930.0,108920.0,0.3025638]
[1752040570957,0.5420261,108930.0,108920.0,0.29338309]
[1752040571293,0.1580261,108930.0,108920.0,0.29338309]
[1752040571509,0.1928459,108930.0,108920.0,0.29338309]
[1752040571722,0.2020261,108930.0,108920.0,0.29338309]
[1752040572159,0.2020261,108930.0,108920.0,0.29338318]
[1752040572570,0.2020261,108930.0,108920.0,0.2842023]
[1752040572775,0.2020261,108930.0,108920.0,0.29338309]
[1752040573517,0.1928459,108930.0,108920.0,0.3025638]
[1752040574030,0.20202602,108930.0,108920.0,0.29338309]
[1752040574769,0.20202602,108930.0,108920.0,0.29338318]
[1752040574976,0.34163016,108930.0,108920.0,0.29338318]
[1752040575410,0.15802602,108930.0,108920.0,0.29338318]
[1752040575664,0.13043301,108930.0,108920.0,0.31174435]
[1752040575872,0.005,108930.0,108920.0,0.61546612]
[1752040576078,0.04896,108930.0,108920.0,0.61546612]
[1752040576704,0.04596,108930.0,108920.0,0.61546612]
[1752040577121,0.04696,108930.0,108920.0,0.31174435]
[1752040577327,0.04496,108930.0,108920.0,0.61546612]
[1752040577533,0.04496,108930.0,108920.0,0.65650651]
[1752040577747,0.04596,108930.0,108920.0,0.65650651]
[1752040578113,0.04596,108930.0,108920.0,0.61546612]
[1752040579719,0.05513944,108930.0,108920.0,0.65650651]
[1752040579939,0.06431905,108930.0,108920.0,0.35278474]
[1752040580150,0.05513944,108930.0,108920.0,0.65650651]
[1752040580415,0.04596,108930.0,108920.0,0.65650611]
[1752040580636,0.04596,108930.0,108920.0,0.65649582]
[1752040581614,0.04596,108930.0,108920.0,0.35277405]
[1752040581813,0.04596,108930.0,108920.0,0.65649582]
[1752040585236,0.04596,108930.0,108920.0,0.35277405]
[1752040585584,0.05513944,108930.0,108920.0,0.65649582]
[1752040587174,0.06431905,108930.0,108920.0,0.65649582]
[1752040587379,0.0826787,108930.0,108920.0,0.34359359]
[1752040587621,0.26628276,108930.0,108920.0,0.2658296]
[1752040587824,0.0826793,108930.0,108920.0,0.24531056]
[1752040588029,0.07349918,108930.0,108920.0,0.26367189]
[1752040588229,0.07349918,108930.0,108920.0,0.28203331]
[1752040588431,0.07349918,108930.0,108920.0,0.27285277]
[1752040588635,0.08267921,108930.0,108920.0,0.27285277]
[1752040588916,0.14487921,108930.0,108920.0,0.22399135]
[1752040589056,0.38645495,108930.0,108920.0,0.22399144]
[1752040589263,0.39563515,108930.0,108920.0,0.23317223]
[1752040589627,0.39563507,108930.0,108920.0,0.23317223]
[1752040590031,0.39563507,108930.0,108920.0,0.24235294]
[1752040590244,0.44715546,108930.0,108920.0,0.21481056]
[1752040590455,0.70383696,108930.0,108920.0,0.0220086]
[1752040590874,0.70389062,108930.0,108920.0,0.0220086]
[1752040591082,0.70389062,108930.0,108920.0,0.02200883]
[1752040592344,0.40006122,108930.0,108920.0,0.02200883]
[1752040592564,0.70389062,108930.0,108920.0,0.02200883]
[1752040593434,0.40006122,108930.0,108920.0,0.02200883]
[1752040593614,0.70389062,108930.0,108920.0,0.02200883]
[1752040595332,0.40006122,108930.0,108920.0,0.02200883]
[1752040595558,0.70389062,108930.0,108920.0,0.02200883]
[1752040597137,0.73148262,108930.0,108920.0,0.02200883]
[1752040601134,0.42765322,108930.0,108920.0,0.02200883]
[1752040601306,0.73148262,108930.0,108920.0,0.02200883]
[1752040602119,0.42765322,108930.0,108920.0,0.02200883]
[1752040602523,0.42765322,108930.0,108920.0,0.02200817]
[1752040605206,0.40006122,108930.0,108920.0,0.02200817]
[1752040607342,0.70389062,108930.0,108920.0,0.02200817]
[1752040608245,0.70389062,108930.0,108920.0,0.02200737]
[1752040608674,0.40006122,108930.0,108920.0,0.02200737]
[1752040609466,0.48006122,108930.0,108920.0,0.02200737]
[1752040609708,0.45016122,108930.0,108920.0,0.02200737]
[1752040610330,0.75399062,108930.0,108920.0,0.02200737]
[1752040611124,0.45016122,108930.0,108920.0,0.02200753]
[1752040612836,0.75395279,108930.0,108920.0,0.02200753]
[1752040613606,0.72315279,108930.0,108920.0,0.02200753]
[1752040615507,0.72315279,108930.0,108920.0,0.20562853]
[1752040615702,0.71397276,108930.0,108920.0,0.21480958]
[1752040615964,0.70479264,108930.0,108920.0,0.02200753]
[1752040616400,0.66083264,108930.0,108920.0,0.02200753]
[1752040616602,0.66083264,108930.0,108920.0,0.03118858]
[1752040616814,0.66083264,108930.0,108920.0,0.21480958]
[1752040617072,0.01118012,108930.0,108920.0,0.59846248]
[1752040617293,0.02035948,108930.0,108920.0,0.60764294]
[1752040617515,0.01117961,108930.0,108920.0,0.60764294]
[1752040617735,0.07329951,108930.0,108920.0,0.60764294]
[1752040617957,0.21214365,108930.0,108920.0,0.28549037]
[1752040618165,0.21214365,108930.0,108920.0,0.59846265]
[1752040618415,0.21214365,108930.0,108920.0,0.59946265]
[1752040618630,0.21214365,108930.0,108920.0,0.29567108]
[1752040618838,0.21114365,108930.0,108920.0,0.59946265]
[1752040619066,0.25490365,108930.0,108920.0,0.59946265]
[1752040619498,0.07129951,108930.0,108920.0,0.60864311]
[1752040619713,0.06211948,108930.0,108920.0,0.60865474]
[1752040619922,0.07129951,108930.0,108920.0,0.30486294]
[1752040620128,0.08047963,108930.0,108920.0,0.60865451]
[1752040620531,0.06211948,108930.0,108920.0,0.60865451]
[1752040620759,0.07129951,108930.0,108920.0,0.34600292]
[1752040620895,0.07129951,108930.0,108920.0,0.64979449]
[1752040621150,0.06211948,108930.0,108920.0,0.64979449]
[1752040621350,0.06211939,108930.0,108920.0,0.64979449]
[1752040621594,0.07129934,108930.0,108920.0,0.64979449]
[1752040621798,0.06211939,108930.0,108920.0,0.64979449]
[1752040621957,0.07129934,108930.0,108920.0,0.34600292]
[1752040622155,0.07129934,108930.0,108920.0,0.64979449]
[1752040622987,0.07129934,108930.0,108920.0,0.34600292]
[1752040623186,0.08047937,108930.0,108920.0,0.64979449]
[1752040623642,0.39345106,108930.0,108920.0,0.19351246]
[1752040623854,0.08966008,108930.0,108920.0,0.15237248]
[1752040624069,0.08966008,108930.0,108920.0,0.45616405]
[1752040624285,0.08966008,108930.0,108920.0,0.15237248]
[1752040624716,0.55869606,108930.0,108920.0,0.14319194]
[1752040624991,0.55869606,108930.0,108920.0,0.15237282]
[1752040626084,0.25486449,108930.0,108920.0,0.16155361]
[1752040626492,0.25486449,108930.0,108920.0,0.17073432]
[1752040627354,0.25486449,108930.0,108920.0,0.16155361]
[1752040627598,0.25486449,108930.0,108920.0,0.16154758]
[1752040627805,0.55865606,108930.0,108920.0,0.17072829]
[1752040628224,0.55865606,108930.0,108920.0,0.17990891]
[1752040628610,0.54947603,108930.0,108920.0,0.12994758]
[1752040628841,0.54947603,108930.0,108920.0,0.10004758]
[1752040629458,0.53111571,108930.0,108920.0,0.08168591]
[1752040629668,0.22732414,108930.0,108920.0,0.08168591]
[1752040629882,0.53111571,108930.0,108920.0,0.08168591]
[1752040633268,0.53111571,108930.0,108920.0,0.08168771]
[1752040634502,0.22732414,108930.0,108920.0,0.09086859]
[1752040634720,0.53111571,108930.0,108920.0,0.08168771]
[1752040635377,0.53111571,108930.0,108920.0,0.0210147]
[1752040635619,0.25862414,108930.0,108920.0,0.0210147]
[1752040635857,0.56241571,108930.0,108920.0,0.0210147]
[1752040636112,0.53111571,108930.0,108920.0,0.0210147]
[1752040636826,0.68385264,108930.0,108920.0,0.0210147]
[1752040639062,0.68385264,108930.0,108920.0,0.02101478]
[1752040640834,0.69031083,108930.0,108920.0,0.02101478]
[1752040641548,0.68385264,108930.0,108920.0,0.02101478]
[1752040641756,0.69031048,108930.0,108920.0,0.02101478]
[1752040643020,0.68385264,108930.0,108920.0,0.02101478]
[1752040651554,0.68385264,108930.0,108920.0,0.02101482]
[1752040652114,0.38006107,108930.0,108920.0,0.02101482]
[1752040652365,0.68385264,108930.0,108920.0,0.02101482]
[1752040655760,0.38006107,108930.0,108920.0,0.02101482]
[1752040655975,0.65265264,108930.0,108920.0,0.02101482]
[1752040656427,0.31876107,108930.0,108920.0,0.02101482]
[1752040656616,0.62255264,108930.0,108920.0,0.02101482]
[1752040657351,0.31876107,108930.0,108920.0,0.02101482]
[1752040657555,0.62255264,108930.0,108920.0,0.02101482]
[1752040659029,0.62255264,108930.0,108920.0,0.02101805]
[1752040659941,0.31876107,108930.0,108920.0,0.02101805]
[1752040660186,0.62255264,108930.0,108920.0,0.02101805]
[1752040661188,0.31876107,108930.0,108920.0,0.02101805]
[1752040661405,0.62255264,108930.0,108920.0,0.02101805]
[1752040663760,0.62901095,108930.0,108920.0,0.02101805]
[1752040665661,0.32521938,108930.0,108920.0,0.02101805]
[1752040665866,0.62901095,108930.0,108920.0,0.02101805]
[1752040667217,0.66031095,108930.0,108920.0,0.02101805]
[1752040667434,0.66031095,108930.0,108920.0,0.0210274]
[1752040671426,0.62901095,108930.0,108920.0,0.0210274]
[1752040671668,0.62901095,108930.0,108920.0,0.0200694]
[1752040671855,0.62881095,108930.0,108920.0,0.0200694]
[1752040672111,0.32501938,108930.0,108920.0,0.0200694]
[1752040672318,0.62881095,108930.0,108920.0,0.0200694]
[1752040675973,0.32501938,108930.0,108920.0,0.0200694]
[1752040676229,0.62881095,108930.0,108920.0,0.0200694]
[1752040679911,0.32501938,108930.0,108920.0,0.0200694]
[1752040680224,0.62881095,108930.0,108920.0,0.0200694]
[1752040683658,0.6288148,108930.0,108920.0,0.02007374]
[1752040685671,0.5852948,108930.0,108920.0,0.02007374]
[1752040685904,0.6287348,108930.0,108920.0,0.02007374]
[1752040686523,0.62873485,108930.0,108920.0,0.02007375]
[1752040687136,0.69033485,108930.0,108920.0,0.02007375]
[1752040687335,0.65943485,108930.0,108920.0,0.02007375]
[1752040687747,0.62873485,108930.0,108920.0,0.02007375]
[1752040688626,0.32494328,108930.0,108920.0,0.02007375]
[1752040688836,0.62873485,108930.0,108920.0,0.02007375]
[1752040689217,0.62873496,108930.0,108920.0,0.02007375]
[1752040691183,0.66003496,108930.0,108920.0,0.02007375]
[1752040692071,0.66003506,108930.0,108920.0,0.02007377]
[1752040694531,0.62873506,108930.0,108920.0,0.02007377]
[1752040697929,0.62873506,108930.0,108920.0,0.02007378]
[1752040703675,0.62873542,108930.0,108920.0,0.02007605]
[1752040705214,0.62865542,108930.0,108920.0,0.02007605]
[1752040707045,0.58529542,108930.0,108920.0,0.02007605]
[1752040707283,0.62865542,108930.0,108920.0,0.02007605]
[1752040707832,0.32486385,108930.0,108920.0,0.02007605]
[1752040708047,0.62865542,108930.0,108920.0,0.02007605]
[1752040712174,0.62865542,108930.0,108920.0,0.02007604]
[1752040714768,0.32486385,108930.0,108920.0,0.02007604]
[1752040714981,0.62865542,108930.0,108920.0,0.02007604]
[1752040715162,0.62865542,108930.0,108920.0,0.02007535]
[1752040718054,0.32486385,108930.0,108920.0,0.02007535]
[1752040718260,0.62865542,108930.0,108920.0,0.02007535]
[1752040722597,0.62865542,108930.0,108920.0,0.02006996]
[1752040723714,0.66045542,108930.0,108920.0,0.02006996]
[1752040724967,0.35666385,108930.0,108920.0,0.02006996]
[1752040725180,0.66045542,108930.0,108920.0,0.02006996]
[1752040726250,0.62865542,108930.0,108920.0,0.02006996]
[1752040726450,0.62865541,108930.0,108920.0,0.02006996]
[1752040729301,0.62865541,108930.0,108920.0,0.02006815]
[1752040729718,0.62865543,108930.0,108920.0,0.02006815]
[1752040732158,0.62219264,108930.0,108920.0,0.02006835]
[1752040735190,0.62219264,108930.0,108920.0,0.02006833]
[1752040743410,0.62203264,108930.0,108920.0,0.02006833]
[1752040744058,0.57883264,108930.0,108920.0,0.02006833]
[1752040744279,0.62203264,108930.0,108920.0,0.02006833]
[1752040749868,0.62203264,108930.0,108920.0,0.09418952]
[1752040750082,0.64300219,108930.0,108920.0,0.09418952]
[1752040750328,0.64296219,108930.0,108920.0,0.09418952]
[1752040750965,0.60987084,108930.0,108920.0,0.09418952]
[1752040751202,0.30607927,108930.0,108920.0,0.09418952]
[1752040751417,0.64607927,108930.0,108920.0,0.09418952]
[1752040751627,0.91787084,108930.0,108920.0,0.10786078]
[1752040751839,0.91189602,108930.0,108920.0,0.10786078]
[1752040752903,0.87880467,108930.0,108920.0,0.10786078]
[1752040753755,0.53880467,108930.0,108920.0,0.10786078]
[1752040754895,0.53880467,108930.0,108920.0,0.14902957]
[1752040755154,0.49564467,108930.0,108920.0,0.14902957]
[1752040755364,0.53880467,108930.0,108920.0,0.14902957]
[1752040756031,0.54526721,108930.0,108920.0,0.09417176]
[1752040756255,0.57666721,108930.0,108920.0,0.09417176]
[1752040756758,0.57666721,108930.0,108920.0,0.09417159]
[1752040757015,0.60766721,108930.0,108920.0,0.09417159]
[1752040757652,0.57666721,108930.0,108920.0,0.09417159]
[1752040758945,0.49011278,108930.0,108920.0,0.09417159]
[1752040759157,0.44695278,108930.0,108920.0,0.09417159]
[1752040759363,0.49007278,108930.0,108920.0,0.09417159]
[1752040759986,0.44481104,108930.0,108920.0,0.09417159]
[1752040760194,0.62841518,108930.0,108920.0,0.09417159]
[1752040761030,0.6173843,108930.0,108920.0,0.09417159]
[1752040767009,0.59532257,108930.0,108920.0,0.09417159]
[1752040769467,0.59532257,108930.0,108920.0,0.09129897]
[1752040770125,0.56222997,108930.0,108920.0,0.09129897]
[1752040770338,0.56218997,108930.0,108920.0,0.09129897]
[1752040770579,0.56218997,108930.0,108920.0,0.07414543]
[1752040770580,0.25193586,108930.0,108920.0,0.07414543]
[1752040770800,0.55572743,108930.0,108920.0,0.07414543]
[1752040777691,0.58642743,108930.0,108920.0,0.07414543]
[1752040779270,0.52072852,108930.0,108920.0,0.09129613]
[1752040779480,0.46373583,108930.0,108920.0,0.09129613]
[1752040779673,0.45727465,108930.0,108920.0,0.09129613]
[1752040781313,0.42657465,108930.0,108920.0,0.09129613]
[1752040782340,0.42653465,108930.0,108920.0,0.09129613]
[1752040787015,0.42653465,108930.0,108920.0,0.05012734]
[1752040787213,0.42653465,108930.0,108920.0,0.03297664]
[1752040789141,0.42653465,108930.0,108920.0,4.2e-05]
[1752040789375,0.42653465,108930.0,108920.0,0.07414607]
[1752040794303,0.42055985,108930.0,108920.0,0.07414607]
[1752040794484,0.42051985,108930.0,108920.0,0.07414607]
[1752040796268,0.43774688,108930.0,108920.0,0.07414607]
[1752040797064,0.39474688,108930.0,108920.0,0.07414607]
[1752040797265,0.43774688,108930.0,108920.0,0.07414607]
[1752040800877,0.13395531,108930.0,108920.0,0.07414607]
[1752040801083,0.43774688,108930.0,108920.0,0.07414607]
[1752040801739,0.43774688,108930.0,108920.0,0.13344607]
[1752040801967,0.14309551,108930.0,108920.0,0.44641869]
[1752040802181,0.08772671,108930.0,108920.0,1.0162312]
[1752040802393,0.02640647,108930.0,108920.0,1.0162312]
[1752040802596,0.01722703,108930.0,108920.0,1.10766813]
[1752040802803,0.09578043,108950.0,108940.0,0.26184542]
[1752040803010,0.33148905,108950.0,108940.0,0.63053889]
[1752040803217,0.32231112,108950.0,108940.0,0.13396231]
[1752040803452,0.27017294,108950.0,108940.0,0.5893748]
[1752040803566,0.13874042,108950.0,108940.0,0.61691178]
[1752040803769,0.12956149,108950.0,108940.0,0.61691178]
[1752040803969,0.14891794,108950.0,108940.0,0.62609055]
[1752040804475,0.14891785,108950.0,108940.0,0.62609055]
[1752040804646,0.1590962,108950.0,108940.0,0.62609055]
[1752040804854,0.15909687,108950.0,108940.0,0.62609055]
[1752040805706,0.15901098,108950.0,108940.0,0.62609055]
[1752040806345,0.15901149,108950.0,108940.0,0.61691178]
[1752040806543,0.32422557,108950.0,108940.0,0.60773293]
[1752040806753,0.31504722,108950.0,108940.0,0.63969972]
[1752040807237,0.31504722,108950.0,108940.0,0.34508726]
[1752040808087,0.31504722,108950.0,108940.0,0.3542662]
[1752040808738,0.31504722,108950.0,108940.0,0.65805777]
[1752040809099,0.31504722,108950.0,108940.0,0.62600649]
[1752040809297,0.13147678,108950.0,108940.0,0.66704612]
[1752040809719,0.31504722,108950.0,108940.0,0.65786735]
[1752040809921,0.31504722,108950.0,108940.0,0.6486885]
[1752040810119,0.31504722,108950.0,108940.0,0.63950956]
[1752040810320,0.31504722,108950.0,108940.0,0.59846934]
[1752040810523,0.31504722,108950.0,108940.0,0.58951823]
[1752040810724,0.26290879,108950.0,108940.0,0.28572683]
[1752040810946,0.60048184,108950.0,108940.0,0.28572683]
[1752040811579,0.29669027,108950.0,108940.0,0.28572683]
[1752040811777,0.29669027,108950.0,108940.0,0.32676705]
[1752040811977,0.29669027,108950.0,108940.0,0.33594633]
[1752040812228,0.29669027,108950.0,108940.0,0.33881812]
[1752040812380,0.29669027,108950.0,108940.0,0.2977779]
[1752040812611,0.29669027,108950.0,108940.0,0.33881812]
[1752040812812,0.29669027,108950.0,108940.0,0.64260969]
[1752040813015,0.29669027,108950.0,108940.0,0.60156947]
[1752040813666,0.29669027,108950.0,108940.0,0.59869768]
[1752040815462,0.29669027,108950.0,108940.0,0.40593111]
[1752040816075,0.29669027,108950.0,108940.0,0.10213954]